Workbook

Sheet 预测输入
B2: HLP Manufacturing INC
B3: 销售预测
B4: 机密
B6: 商机名称 | C6: 销售 代理 | D6: 销售 区域 | E6: 销售 类别 | F6: 预测金额 | G6: 销售 阶段 | H6: 销售概率 | I6: 预测 关闭 | J6: 加权预测
B7: Adatum Corporation | C7: Rowan Murphy | D7: 美国 - 东北地区 | E7: 咨询 | F7: ¥150,000 | G7: 正式批准 | H7: 90% | I7: =DATE(YEAR(TODAY())+1,1,1) -> 2025-01-01 | J7: =Table_ForecastInput[[#This Row],[预测金额]]*Table_ForecastInput[[#This Row],[销售概率]] -> ¥135,000
B8: Adventure Works | C8: Miho Kojima | D8: 美国 - 东南地区 | E8: 产品 | F8: ¥145,200 | G8: 商机 | H8: 10% | I8: =DATE(YEAR(TODAY())+1,2,1) -> 2025-02-01 | J8: =Table_ForecastInput[[#This Row],[预测金额]]*Table_ForecastInput[[#This Row],[销售概率]] -> ¥14,520
B9: Alpine Ski House | C9: Cora Thomas | D9: 美国 - 中北部地区 | E9: 培训 | F9: ¥162,500 | G9: 已确定需求 | H9: 20% | I9: =DATE(YEAR(TODAY())+1,3,1) -> 2025-03-01 | J9: =Table_ForecastInput[[#This Row],[预测金额]]*Table_ForecastInput[[#This Row],[销售概率]] -> ¥32,500
B10: Baldwin Museum of Science | C10: Ellis Turner | D10: 美国 - 中南部地区 | E10: 混合 | F10: ¥147,500 | G10: 赞助 | H10: 30% | I10: =DATE(YEAR(TODAY())+1,4,1) -> 2025-04-01 | J10: =Table_ForecastInput[[#This Row],[预测金额]]*Table_ForecastInput[[#This Row],[销售概率]] -> ¥44,250
B11: Blue Yonder Airlines | C11: Suma Kini | D11: 美国 - 西北地区 | E11: 专业服务 | F11: ¥148,000 | G11: 预算已验证 | H11: 40% | I11: =DATE(YEAR(TODAY())+1,5,1) -> 2025-05-01 | J11: =Table_ForecastInput[[#This Row],[预测金额]]*Table_ForecastInput[[#This Row],[销售概率]] -> ¥59,200
B12: City Power & Light | C12: Rowan Murphy | D12: 美国 - 西南地区 | E12: 支持 | F12: ¥175,000 | G12: 需要分析 | H12: 50% | I12: =DATE(YEAR(TODAY())+1,6,1) -> 2025-06-01 | J12: =Table_ForecastInput[[#This Row],[预测金额]]*Table_ForecastInput[[#This Row],[销售概率]] -> ¥87,500
B13: Coho Vineyard | C13: Cora Thomas | D13: 加拿大 - 东部地区 | E13: 混合 | F13: ¥149,000 | G13: 已提出解决方案 | H13: 60% | I13: =DATE(YEAR(TODAY())+1,7,1) -> 2025-07-01 | J13: =Table_ForecastInput[[#This Row],[预测金额]]*Table_ForecastInput[[#This Row],[销售概率]] -> ¥89,400
B14: Coho Winery | C14: Suma Kini | D14: 加拿大 - 西部地区 | E14: 培训 | F14: ¥142,000 | G14: 书面建议 | H14: 70% | I14: =DATE(YEAR(TODAY())+1,8,1) -> 2025-08-01 | J14: =Table_ForecastInput[[#This Row],[预测金额]]*Table_ForecastInput[[#This Row],[销售概率]] -> ¥99,400
B15: Contoso, Ltd. | C15: Cora Thomas | D15: EMEA - 法国 | E15: 混合 | F15: ¥172,500 | G15: 口头批准 | H15: 90% | I15: =DATE(YEAR(TODAY())+1,10,1) -> 2025-10-01 | J15: =Table_ForecastInput[[#This Row],[预测金额]]*Table_ForecastInput[[#This Row],[销售概率]] -> ¥155,250
B16: Contoso Pharmaceuticals | C16: Ellis Turner | D16: EMEA - 德国 | E16: 产品 | F16: ¥163,500 | G16: 赞助 | H16: 20% | I16: =DATE(YEAR(TODAY())+1,11,1) -> 2025-11-01 | J16: =Table_ForecastInput[[#This Row],[预测金额]]*Table_ForecastInput[[#This Row],[销售概率]] -> ¥32,700
B17: Consolidated Messenger | C17: Suma Kini | D17: EMEA - 意大利 | E17: 产品 | F17: ¥155,500 | G17: 正式批准 | H17: 100% | I17: =DATE(YEAR(TODAY())+1,12,1) -> 2025-12-01 | J17: =Table_ForecastInput[[#This Row],[预测金额]]*Table_ForecastInput[[#This Row],[销售概率]] -> ¥155,500
B18: Fabrikam, Inc. | C18: Ellis Turner | D18: EMEA - 其他 | E18: 咨询 | F18: ¥166,000 | G18: 商机 | H18: 10% | I18: =DATE(YEAR(TODAY())+1,1,1) -> 2025-01-01 | J18: =Table_ForecastInput[[#This Row],[预测金额]]*Table_ForecastInput[[#This Row],[销售概率]] -> ¥16,600
B19: Fourth Coffee | C19: Cora Thomas | D19: APSA - 亚洲 | E19: 培训 | F19: ¥180,000 | G19: 预算已验证 | H19: 30% | I19: =DATE(YEAR(TODAY())+1,3,1) -> 2025-03-01 | J19: =Table_ForecastInput[[#This Row],[预测金额]]*Table_ForecastInput[[#This Row],[销售概率]] -> ¥54,000
B20: Graphic Design Institute | C20: Miho Kojima | D20: APSA - 太平洋地区 | E20: 服务 | F20: ¥140,000 | G20: 已提出解决方案 | H20: 60% | I20: =DATE(YEAR(TODAY())+1,5,1) -> 2025-05-01 | J20: =Table_ForecastInput[[#This Row],[预测金额]]*Table_ForecastInput[[#This Row],[销售概率]] -> ¥84,000
B21: Humongous Insurance | C21: Rowan Murphy | D21: APSA - 墨西哥 | E21: 支持 | F21: ¥155,000 | G21: 赞助 | H21: 30% | I21: =DATE(YEAR(TODAY())+1,6,1) -> 2025-06-01 | J21: =Table_ForecastInput[[#This Row],[预测金额]]*Table_ForecastInput[[#This Row],[销售概率]] -> ¥46,500
B22: Litware, Inc. | C22: Miho Kojima | D22: APSA - 澳大利亚 | E22: 专业服务 | F22: ¥173,200 | G22: 需要分析 | H22: 50% | I22: =DATE(YEAR(TODAY())+1,10,1) -> 2025-10-01 | J22: =Table_ForecastInput[[#This Row],[预测金额]]*Table_ForecastInput[[#This Row],[销售概率]] -> ¥86,600
B23: Lucerne Publishing | C23: Suma Kini | D23: APSA - 其他 | E23: 服务 | F23: ¥146,500 | G23: 已提出解决方案 | H23: 60% | I23: =DATE(YEAR(TODAY())+1,12,1) -> 2025-12-01 | J23: =Table_ForecastInput[[#This Row],[预测金额]]*Table_ForecastInput[[#This Row],[销售概率]] -> ¥87,900
B24: Margie's Travel | C24: Ellis Turner | D24: 美国 - 东北地区 | E24: 支持 | F24: ¥156,750 | G24: 书面建议 | H24: 70% | I24: =DATE(YEAR(TODAY())+1,11,1) -> 2025-11-01 | J24: =Table_ForecastInput[[#This Row],[预测金额]]*Table_ForecastInput[[#This Row],[销售概率]] -> ¥109,725
B25: Northwind Traders | C25: Cora Thomas | D25: 美国 - 中南部地区 | E25: 专业服务 | F25: ¥162,000 | G25: 口头批准 | H25: 90% | I25: =DATE(YEAR(TODAY())+1,2,1) -> 2025-02-01 | J25: =Table_ForecastInput[[#This Row],[预测金额]]*Table_ForecastInput[[#This Row],[销售概率]] -> ¥145,800
B26: Proseware, Inc. | C26: Ellis Turner | D26: 加拿大 - 东部地区 | E26: 混合 | F26: ¥157,000 | G26: 正式批准 | H26: 100% | I26: =DATE(YEAR(TODAY())+1,3,1) -> 2025-03-01 | J26: =Table_ForecastInput[[#This Row],[预测金额]]*Table_ForecastInput[[#This Row],[销售概率]] -> ¥157,000
B27: School of Fine Art | C27: Miho Kojima | D27: EMEA - 法国 | E27: 服务 | F27: ¥173,000 | G27: 预算已验证 | H27: 40% | I27: =DATE(YEAR(TODAY())+1,4,1) -> 2025-04-01 | J27: =Table_ForecastInput[[#This Row],[预测金额]]*Table_ForecastInput[[#This Row],[销售概率]] -> ¥69,200
B28: Southridge Video | C28: Suma Kini | D28: EMEA - 英国 | E28: 混合 | F28: ¥171,000 | G28: 需要分析 | H28: 50% | I28: =DATE(YEAR(TODAY())+1,8,1) -> 2025-08-01 | J28: =Table_ForecastInput[[#This Row],[预测金额]]*Table_ForecastInput[[#This Row],[销售概率]] -> ¥85,500
B29: Tailspin Toys | C29: Rowan Murphy | D29: APSA - 澳大利亚 | E29: 产品 | F29: ¥168,000 | G29: 已提出解决方案 | H29: 60% | I29: =DATE(YEAR(TODAY())+1,9,1) -> 2025-09-01 | J29: =Table_ForecastInput[[#This Row],[预测金额]]*Table_ForecastInput[[#This Row],[销售概率]] -> ¥100,800

Sheet 销售预测
B2: =CompanyName -> HLP Manufacturing INC
B3: 预测图
B4: 机密
B5: 开始月份 | C5: =DATE(YEAR(TODAY())+1,1,1) -> 2025-01-01
B6: 月 | C6: 每月预测 | D6: 累积 | P6: =B6 -> 月 | Q6: 月度预测 | R6: 累积
B7: =DATE(YEAR(Starting_Month),MONTH(Starting_Month)+0,1) -> 2025-01-01 | C7: =SUMIFS(Table_ForecastInput[加权预测],Table_ForecastInput[预测 关闭],">="&销售预测!B7,Table_ForecastInput[预测 关闭],"<="&DATE(YEAR(销售预测!B7),MONTH(销售预测!B7)+1,0)) -> ¥151,600 | D7: =IF(ISNUMBER(D6),D6+C7,C7) -> ¥151,600 | P7: =B7 -> 2025-01-01 | Q7: =C7 -> ¥151,600 | R7: =D7-C7 -> 0
B8: =DATE(YEAR(Starting_Month),MONTH(Starting_Month)+1,1) -> 2025-02-01 | C8: =SUMIFS(Table_ForecastInput[加权预测],Table_ForecastInput[预测 关闭],">="&销售预测!B8,Table_ForecastInput[预测 关闭],"<="&DATE(YEAR(销售预测!B8),MONTH(销售预测!B8)+1,0)) -> ¥160,320 | D8: =IF(ISNUMBER(D7),D7+C8,C8) -> ¥311,920 | P8: 2025-02-01 | Q8: =C8 -> ¥160,320 | R8: =D8-C8 -> ¥151,600
B9: =DATE(YEAR(Starting_Month),MONTH(Starting_Month)+2,1) -> 2025-03-01 | C9: =SUMIFS(Table_ForecastInput[加权预测],Table_ForecastInput[预测 关闭],">="&销售预测!B9,Table_ForecastInput[预测 关闭],"<="&DATE(YEAR(销售预测!B9),MONTH(销售预测!B9)+1,0)) -> ¥243,500 | D9: ¥555,420 | P9: 2025-03-01 | Q9: ¥243,500 | R9: ¥311,920
B10: =DATE(YEAR(Starting_Month),MONTH(Starting_Month)+3,1) -> 2025-04-01 | C10: =SUMIFS(Table_ForecastInput[加权预测],Table_ForecastInput[预测 关闭],">="&销售预测!B10,Table_ForecastInput[预测 关闭],"<="&DATE(YEAR(销售预测!B10),MONTH(销售预测!B10)+1,0)) -> ¥113,450 | D10: ¥668,870 | P10: 2025-04-01 | Q10: ¥113,450 | R10: ¥555,420
B11: =DATE(YEAR(Starting_Month),MONTH(Starting_Month)+4,1) -> 2025-05-01 | C11: =SUMIFS(Table_ForecastInput[加权预测],Table_ForecastInput[预测 关闭],">="&销售预测!B11,Table_ForecastInput[预测 关闭],"<="&DATE(YEAR(销售预测!B11),MONTH(销售预测!B11)+1,0)) -> ¥143,200 | D11: ¥812,070 | P11: 2025-05-01 | Q11: ¥143,200 | R11: ¥668,870
B12: =DATE(YEAR(Starting_Month),MONTH(Starting_Month)+5,1) -> 2025-06-01 | C12: =SUMIFS(Table_ForecastInput[加权预测],Table_ForecastInput[预测 关闭],">="&销售预测!B12,Table_ForecastInput[预测 关闭],"<="&DATE(YEAR(销售预测!B12),MONTH(销售预测!B12)+1,0)) -> ¥134,000 | D12: ¥946,070 | P12: 2025-06-01 | Q12: ¥134,000 | R12: ¥812,070
B13: =DATE(YEAR(Starting_Month),MONTH(Starting_Month)+6,1) -> 2025-07-01 | C13: =SUMIFS(Table_ForecastInput[加权预测],Table_ForecastInput[预测 关闭],">="&销售预测!B13,Table_ForecastInput[预测 关闭],"<="&DATE(YEAR(销售预测!B13),MONTH(销售预测!B13)+1,0)) -> ¥89,400 | D13: ¥1,035,470 | P13: 2025-07-01 | Q13: ¥89,400 | R13: ¥946,070
B14: =DATE(YEAR(Starting_Month),MONTH(Starting_Month)+7,1) -> 2025-08-01 | C14: =SUMIFS(Table_ForecastInput[加权预测],Table_ForecastInput[预测 关闭],">="&销售预测!B14,Table_ForecastInput[预测 关闭],"<="&DATE(YEAR(销售预测!B14),MONTH(销售预测!B14)+1,0)) -> ¥184,900 | D14: ¥1,220,370 | P14: 2025-08-01 | Q14: ¥184,900 | R14: ¥1,035,470
B15: =DATE(YEAR(Starting_Month),MONTH(Starting_Month)+8,1) -> 2025-09-01 | C15: =SUMIFS(Table_ForecastInput[加权预测],Table_ForecastInput[预测 关闭],">="&销售预测!B15,Table_ForecastInput[预测 关闭],"<="&DATE(YEAR(销售预测!B15),MONTH(销售预测!B15)+1,0)) -> ¥100,800 | D15: ¥1,321,170 | P15: 2025-09-01 | Q15: ¥100,800 | R15: ¥1,220,370
B16: =DATE(YEAR(Starting_Month),MONTH(Starting_Month)+9,1) -> 2025-10-01 | C16: =SUMIFS(Table_ForecastInput[加权预测],Table_ForecastInput[预测 关闭],">="&销售预测!B16,Table_ForecastInput[预测 关闭],"<="&DATE(YEAR(销售预测!B16),MONTH(销售预测!B16)+1,0)) -> ¥241,850 | D16: ¥1,563,020 | P16: 2025-10-01 | Q16: ¥241,850 | R16: ¥1,321,170
B17: =DATE(YEAR(Starting_Month),MONTH(Starting_Month)+10,1) -> 2025-11-01 | C17: =SUMIFS(Table_ForecastInput[加权预测],Table_ForecastInput[预测 关闭],">="&销售预测!B17,Table_ForecastInput[预测 关闭],"<="&DATE(YEAR(销售预测!B17),MONTH(销售预测!B17)+1,0)) -> ¥142,425 | D17: ¥1,705,445 | P17: 2025-11-01 | Q17: ¥142,425 | R17: ¥1,563,020
B18: =DATE(YEAR(Starting_Month),MONTH(Starting_Month)+11,1) -> 2025-12-01 | C18: =SUMIFS(Table_ForecastInput[加权预测],Table_ForecastInput[预测 关闭],">="&销售预测!B18,Table_ForecastInput[预测 关闭],"<="&DATE(YEAR(销售预测!B18),MONTH(销售预测!B18)+1,0)) -> ¥243,400 | D18: ¥1,948,845 | P18: 2025-12-01 | Q18: ¥243,400 | R18: ¥1,705,445

Sheet 列表
B2: =CompanyName -> HLP Manufacturing INC
B3: 销售列表
B4: 机密
B6: 销售代理 | C6: 销售区域 | D6: 销售类别 | E6: 销售阶段
B7: Rowan Murphy | C7: 美国 - 东北地区 | D7: 咨询 | E7: 已确定需求
B8: Miho Kojima | C8: 美国 - 东南地区 | D8: 混合 | E8: 商机
B9: Cora Thomas | C9: 美国 - 中北部地区 | D9: 产品 | E9: 需要分析
B10: Ellis Turner | C10: 美国 - 中南部地区 | D10: 专业服务 | E10: 已提出解决方案
B11: Suma Kini | C11: 美国 - 西北地区 | D11: 服务 | E11: 书面建议
C12: 美国 - 西南地区 | D12: 支持 | E12: 口头批准
C13: 加拿大 - 东部地区 | D13: 培训 | E13: 正式批准
C14: 加拿大 - 西部地区 | E14: 预算已验证
C15: EMEA - 法国 | E15: 赞助
C16: EMEA - 德国
C17: EMEA - 意大利
C18: EMEA - 其他
C19: APSA - 亚洲
C20: APSA - 太平洋地区
C21: APSA - 墨西哥
C22: APSA - 澳大利亚
C23: APSA - 其他
C24: EMEA - 英国
